bitfinex-derivatives/quotes_BTCF0:USTF0_20210109
["timestamp","ask_amount","ask_price","bid_price","bid_amount"]
[1610226362566,0.03043581,40686.0,40674.0,0.13632608]
[1610226362767,0.03043673,40683.0,40674.0,0.13632608]
[1610226362966,0.00030135,40683.0,40674.0,0.13632608]
[1610226363169,0.03043654,40685.0,40679.0,0.13632608]
[1610226363368,0.00030135,40682.0,40679.0,0.13632608]
[1610226363568,0.03043627,40684.0,40679.0,0.13632608]
[1610226363769,0.00030135,40681.0,40679.0,0.13632608]
[1610226364168,0.030436,40686.0,40679.0,0.13632608]
[1610226364369,0.03013465,40684.0,40679.0,0.13632608]
[1610226364569,0.03013465,40684.0,40666.0,0.08096]
[1610226364570,0.03043546,40685.0,40674.0,3.7519]
[1610226364772,0.03043546,40685.0,40666.0,0.08096]
[1610226364971,0.00030134,40686.0,40674.0,3.1929]
[1610226365171,0.00030134,40684.0,40679.0,0.13632608]
[1610226365571,0.00030134,40685.0,40679.0,0.13632608]
[1610226365772,0.0768,40687.0,40679.0,0.13632608]
[1610226365972,0.00030133,40684.0,40666.0,0.08096]
[1610226366171,0.00030133,40686.0,40666.0,0.08096]
[1610226366372,0.00030133,40686.0,40665.0,3.0477]
[1610226366572,0.00030135,40689.0,40665.0,3.0477]
[1610226366774,0.00030135,40685.0,40665.0,3.0477]
[1610226366976,0.00030135,40688.0,40665.0,3.0477]
[1610226367175,0.00030135,40688.0,40666.0,0.13632608]
[1610226367376,0.00030135,40689.0,40666.0,0.13632608]
[1610226367576,0.00030135,40687.0,40666.0,0.13632608]
[1610226367775,1.08449,40690.0,40666.0,0.13632608]
[1610226367776,0.00030135,40688.0,40666.0,0.13632608]
[1610226367976,0.00030135,40688.0,40665.0,3.0477]
[1610226368176,0.00030135,40689.0,40665.0,3.0477]
[1610226368376,0.00030137,40687.0,40665.0,3.0477]
[1610226368576,0.00030137,40688.0,40665.0,3.0477]
[1610226368975,0.03043871,40689.0,40665.0,3.0477]
[1610226369180,0.13632608,40666.0,40665.0,3.0477]
[1610226369376,0.22413608,40666.0,40648.0,3.1349]
[1610226369779,0.00030139,40665.0,40648.0,3.1349]
[1610226369979,0.22413608,40666.0,40648.0,3.1349]
[1610226371182,0.08781,40666.0,40658.0,0.13632608]
[1610226371979,0.08781,40666.0,40648.0,3.1349]
[1610226373079,0.0003014,40665.0,40648.0,3.1349]
[1610226373278,0.13632608,40649.0,40643.0,0.24429608]
[1610226373480,0.13632608,40649.0,40643.0,0.10797]
[1610226373680,0.13632608,40649.0,40626.0,3.0562]
[1610226375184,0.10348,40654.0,40630.0,0.13632608]
[1610226375583,0.00030149,40653.0,40630.0,0.13632608]
[1610226375784,0.00030149,40653.0,40626.0,3.0562]
[1610226377288,0.00030149,40653.0,40635.0,0.13632608]
[1610226377489,0.10348,40654.0,40636.0,1.5]
[1610226377890,0.2904,40684.0,40636.0,1.5]
[1610226378086,0.08449,40690.0,40636.0,1.5]
[1610226378286,0.00311641,40704.0,40657.0,2.7915]
[1610226378487,0.03043771,40689.0,40657.0,2.7915]
[1610226378686,0.11218,40689.0,40657.0,2.7915]
[1610226378888,0.00030133,40688.0,40657.0,2.7915]
[1610226379287,0.00030133,40688.0,40687.0,0.13632608]
[1610226380091,0.2972,40711.0,40672.0,0.08505]
[1610226380288,0.00030129,40688.0,40672.0,0.08505]
[1610226380689,0.09757,40700.0,40672.0,0.08505]
[1610226380889,0.00030132,40687.0,40672.0,0.08505]
[1610226381092,0.03043283,40699.0,40672.0,0.08505]
[1610226381289,0.13632608,40673.0,40672.0,0.57795]
[1610226382090,0.09757,40700.0,40672.0,0.57795]
[1610226382492,0.03043169,40699.0,40672.0,0.57795]
[1610226383391,0.03043169,40699.0,40686.0,0.13632608]
[1610226385196,0.03043169,40699.0,40687.0,3.5194]
[1610226386397,0.03043169,40699.0,40686.0,0.13632608]
[1610226386597,0.03043169,40699.0,40672.0,0.08505]
[1610226386797,0.03043169,40699.0,40668.0,3.8886]
[1610226387197,1.0,40693.0,40668.0,3.8886]
[1610226387396,1.0,40693.0,40677.0,0.13632608]
[1610226387597,1.0,40693.0,40677.0,0.24544608]
[1610226387797,0.03043119,40692.0,40677.0,0.24544608]
[1610226387996,0.03043119,40692.0,40678.0,0.5382]
[1610226388196,0.03043119,40692.0,40677.0,0.24544608]
[1610226388397,0.03043119,40692.0,40685.0,3.9358]
[1610226388798,1.0,40693.0,40685.0,3.9358]
[1610226389397,0.13632608,40697.0,40692.0,0.13632608]
[1610226389998,0.0304296,40696.0,40692.0,0.13632608]
[1610226390197,0.13632608,40697.0,40692.0,0.13632608]
[1610226393901,0.13632608,40697.0,40686.0,0.07798]
[1610226394700,0.03042593,40696.0,40686.0,0.07798]
[1610226395301,0.13632608,40687.0,40677.0,0.10912]
[1610226395503,0.13632608,40687.0,40664.0,0.13632608]
[1610226395702,0.0304303,40686.0,40652.0,3.1192]
[1610226397408,0.0304303,40686.0,40669.0,0.13632608]
[1610226397606,0.0304303,40686.0,40669.0,0.21696608]
[1610226397808,0.03012901,40686.0,40669.0,0.21696608]
[1610226398007,0.03043103,40687.0,40669.0,0.21696608]
[1610226398206,0.08194,40688.0,40669.0,0.21696608]
[1610226398207,0.03043209,40685.0,40669.0,0.21696608]
[1610226398406,0.03043182,40686.0,40669.0,0.21696608]
[1610226398607,0.08194,40688.0,40669.0,0.21696608]
[1610226398806,0.08194,40688.0,40669.0,0.08064]
[1610226399006,0.03043259,40687.0,40669.0,0.08064]
[1610226399207,1.0,40686.0,40652.0,3.1192]
[1610226399407,0.13632608,40668.0,40667.0,0.13632608]
[1610226401309,0.13632608,40673.0,40667.0,0.13632608]
[1610226401510,0.13632608,40673.0,40667.0,0.25038608]
[1610226401711,0.13632608,40673.0,40668.0,4.0192]
[1610226401912,0.35835812,40701.0,40668.0,4.0192]
[1610226402111,0.2981,40701.0,40668.0,4.0192]
[1610226402312,0.0003013,40700.0,40668.0,4.0192]
[1610226402512,0.03043082,40700.0,40668.0,4.0192]
[1610226403415,0.03043082,40700.0,40688.0,0.5433]
[1610226403614,0.03043082,40700.0,40685.0,0.13632608]
[1610226403815,0.03043082,40700.0,40688.0,3.0976]
[1610226404015,0.03042967,40701.0,40688.0,3.0976]
[1610226404216,0.03042907,40699.0,40688.0,3.0976]
[1610226404616,0.03042742,40701.0,40688.0,3.0976]
[1610226404815,0.06025168,40710.0,40688.0,3.20201]
[1610226405015,0.03042643,40700.0,40688.0,3.20201]
[1610226405317,0.13632608,40696.0,40695.0,0.03632608]
[1610226406116,0.13632608,40696.0,40688.0,3.20201]
[1610226406317,0.13632608,40696.0,40688.0,0.10441]
[1610226406717,0.13632608,40696.0,40676.0,3.60499]
[1610226407316,0.074,40701.0,40677.0,0.13632608]
[1610226407518,0.00030128,40695.0,40677.0,0.13632608]
[1610226407716,0.03042783,40700.0,40676.0,3.60499]
[1610226407917,0.00030128,40694.0,40676.0,3.60499]
[1610226408319,0.03042783,40700.0,40676.0,3.60499]
[1610226408517,0.00030128,40693.0,40676.0,3.60499]
[1610226408717,0.03012655,40700.0,40676.0,3.60499]
[1610226408718,0.00030128,40699.0,40676.0,3.60499]
[1610226409019,0.03042785,40700.0,40676.0,3.60499]
[1610226409219,1.0,40689.0,40676.0,3.60499]
[1610226409420,0.13632608,40677.0,40676.0,3.60499]
[1610226409618,0.13632608,40677.0,40667.0,0.11406]
[1610226409819,0.13632608,40677.0,40666.0,0.13632608]
[1610226411421,0.13632608,40667.0,40666.0,0.13632608]
[1610226412120,0.13632608,40667.0,40658.0,2.9821]
[1610226413323,0.13632608,40659.0,40658.0,2.9821]
[1610226415323,0.13632608,40659.0,40655.0,0.13632608]
[1610226416724,0.13632608,40659.0,40645.0,4.0583]
[1610226417326,0.13632608,40646.0,40645.0,4.0583]
[1610226421526,0.11924,40676.0,40645.0,4.0583]
[1610226421926,0.11924,40676.0,40645.0,4.15836]
[1610226422126,0.00030137,40675.0,40645.0,4.15836]
[1610226423430,0.00030137,40675.0,40655.0,0.13632608]
[1610226424428,0.11924,40676.0,40655.0,0.13632608]
[1610226424628,1.0,40681.0,40656.0,3.1262]
[1610226425029,0.00030136,40680.0,40656.0,3.1262]
[1610226425431,0.13632608,40657.0,40656.0,3.1262]
[1610226426032,0.13632608,40657.0,40655.0,0.13632608]
[1610226429034,0.13632608,40657.0,40654.0,0.07712]
[1610226429434,0.13632608,40657.0,40654.0,0.21344608]
[1610226432535,0.13632608,40657.0,40655.0,0.5677]
[1610226432738,0.13632608,40657.0,40654.0,0.21344608]
[1610226432939,1.0,40674.0,40656.0,3.9065]
[1610226433338,0.00759815,40709.0,40656.0,3.9065]
[1610226433339,0.00312851,40711.0,40656.0,3.9065]
[1610226433537,0.2729,40700.0,40674.0,0.13632608]
[1610226433739,0.00030133,40685.0,40676.0,2.7888]
[1610226434138,0.03043377,40699.0,40676.0,2.7888]
[1610226434337,0.03013244,40699.0,40676.0,2.7888]
[1610226434536,0.00030132,40698.0,40676.0,2.7888]
[1610226434936,0.03043376,40699.0,40676.0,2.7888]
[1610226435137,0.00030132,40697.0,40676.0,2.7888]
[1610226435336,0.00030132,40698.0,40676.0,2.7888]
[1610226435538,0.13632608,40677.0,40676.0,2.7888]
[1610226438643,0.13632608,40677.0,40672.0,0.13632608]
[1610226439043,0.13632608,40677.0,40669.0,0.07311]
[1610226439443,0.13632608,40677.0,40665.0,3.3413]
[1610226439644,0.13632608,40670.0,40666.0,0.13632608]
[1610226440545,0.2729,40700.0,40666.0,0.13632608]
[1610226440744,0.2729,40700.0,40666.0,0.21968608]
[1610226440945,0.03042813,40699.0,40666.0,0.21968608]
[1610226441545,0.03042813,40699.0,40678.0,0.13632608]
[1610226442848,0.03042813,40699.0,40682.0,3.2316]
[1610226443648,0.03042813,40699.0,40683.0,0.13632608]
[1610226443848,0.2729,40700.0,40683.0,0.13632608]
[1610226445251,0.3549,40712.0,40683.0,0.13632608]
[1610226445651,0.13632608,40685.0,40683.0,0.13632608]
[1610226446252,0.13632608,40685.0,40682.0,3.2316]
[1610226447152,0.13632608,40685.0,40677.0,0.08917]
[1610226447352,0.13632608,40685.0,40671.0,3.9825]
[1610226447552,0.10905,40703.0,40678.0,0.13632608]
[1610226447751,0.10905,40703.0,40678.0,0.22631608]
[1610226447953,0.00030124,40702.0,40678.0,0.22631608]
[1610226448151,0.00030124,40702.0,40679.0,3.3624]
[1610226448351,0.00030124,40702.0,40678.0,0.22631608]
[1610226448552,0.00030124,40702.0,40684.0,3.39]
[1610226449351,1.0,40699.0,40684.0,3.39]
[1610226449553,0.13632608,40685.0,40684.0,3.39]
[1610226449953,0.13632608,40685.0,40678.0,0.22631608]
[1610226451554,0.13632608,40679.0,40678.0,0.22631608]
[1610226451754,0.13632608,40679.0,40678.0,0.08999]
[1610226452855,0.13632608,40679.0,40671.0,2.7963]
[1610226453655,0.13632608,40672.0,40671.0,2.7963]
[1610226454258,0.13632608,40672.0,40666.0,0.08336]
[1610226454457,0.13632608,40672.0,40654.0,0.07712]
[1610226454458,0.13632608,40672.0,40656.0,3.1159]
[1610226454858,0.13632608,40672.0,40657.0,0.00021795]
[1610226455056,0.13632608,40672.0,40656.0,3.1159]
[1610226455658,0.13632608,40657.0,40656.0,3.1159]
[1610226459562,0.13632608,40657.0,40656.0,3.25222608]
[1610226460161,0.13632608,40657.0,40656.0,3.25244405]
[1610226460361,1.0,40680.0,40656.0,3.25244405]
[1610226460964,1.0,40680.0,40657.0,0.00021797]
[1610226461264,1.0,40685.0,40657.0,0.00021797]
[1610226461664,1.0,40685.0,40678.0,0.13632608]
[1610226461863,1.0,40685.0,40678.0,0.22726608]
[1610226463264,0.2907,40696.0,40678.0,0.22726608]
[1610226463465,1.0,40704.0,40678.0,0.22726608]
[1610226463665,1.0,40704.0,40691.0,0.13632608]
[1610226464066,0.0304235,40701.0,40691.0,0.13632608]
[1610226464869,0.0304235,40701.0,40688.0,3.7405]
[1610226465467,0.0304235,40701.0,40678.0,0.09094]
[1610226465668,0.13632608,40679.0,40678.0,0.09094]
[1610226467069,0.13632608,40679.0,40677.0,4.0685]
[1610226473580,0.13632608,40679.0,40678.0,0.13632608]
[1610226475482,0.13632608,40679.0,40677.0,4.0685]
[1610226478984,0.13632608,40679.0,40672.0,0.13632608]
[1610226479684,0.13632608,40673.0,40672.0,0.13632608]
[1610226480484,0.13632608,40673.0,40672.0,0.66052608]
[1610226487495,0.35835504,40702.0,40672.0,0.66052608]
[1610226487694,0.35835504,40702.0,40684.0,0.13632608]
[1610226487896,0.0304278,40701.0,40687.0,0.5084]
[1610226488097,0.0304278,40701.0,40684.0,0.13632608]
[1610226488295,0.0304278,40701.0,40687.0,3.1322]
[1610226489699,0.13632608,40688.0,40687.0,3.1322]
[1610226495307,0.03632608,40688.0,40687.0,3.1322]
[1610226495707,0.03632608,40688.0,40687.0,3.26852608]
[1610226500716,0.03632608,40688.0,40687.0,3.1322]
[1610226501718,0.03632608,40688.0,40687.0,3.26852608]
[1610226506222,0.03632608,40688.0,40679.0,0.11472]
[1610226506422,0.03632608,40688.0,40677.0,4.0239]
[1610226507825,0.06024894,40697.0,40682.0,0.13632608]
[1610226508226,0.09037405,40697.0,40679.0,0.08757]
[1610226508427,3.9404,40695.0,40679.0,0.08757]
[1610226508626,1.5,40694.0,40679.0,0.08757]
[1610226508828,1.70229769,40694.0,40679.0,0.08757]
[1610226509026,0.09069128,40693.0,40670.0,0.07373]
[1610226509228,0.09069128,40693.0,40661.0,3.1871]
[1610226509728,0.13632608,40662.0,40661.0,3.1871]
[1610226509928,0.13632608,40662.0,40652.0,0.13632608]
[1610226510531,0.13632608,40662.0,40655.0,0.0002209]
[1610226510733,0.13632608,40662.0,40652.0,0.13632608]
[1610226511933,0.13632608,40653.0,40652.0,0.13632608]
[1610226512732,0.13632608,40653.0,40640.0,2.38616409]
[1610226512932,0.13632608,40653.0,40639.0,2.38517952]
[1610226513132,0.13632608,40653.0,40633.0,2.38855199]
[1610226513532,0.13632608,40653.0,40634.0,0.00022097]
[1610226513733,0.13632608,40653.0,40634.0,0.09561097]
[1610226513932,0.13632608,40635.0,40634.0,0.23171608]
[1610226519339,0.13632608,40635.0,40634.0,0.09539]
[1610226519538,0.13632608,40635.0,40619.0,2.39831664]
[1610226519738,0.13632608,40635.0,40616.0,2.39955306]
[1610226519940,0.13632608,40617.0,40616.0,2.39955306]
[1610226520139,0.13632608,40617.0,40614.0,3.0542]
[1610226521543,1.0,40640.0,40614.0,3.0542]
[1610226521743,1.0,40640.0,40614.0,3.15075]
[1610226521944,1.0,40640.0,40625.0,0.13632608]
[1610226522145,1.0,40640.0,40625.0,0.23053608]
[1610226523346,0.2744,40657.0,40625.0,0.23053608]
[1610226523646,0.00030156,40656.0,40625.0,0.23053608]
[1610226523847,0.13632608,40626.0,40625.0,0.23053608]
[1610226524848,0.13632608,40626.0,40625.0,0.09421]
[1610226526748,0.13632608,40626.0,40614.0,0.09655]
[1610226526949,0.13632608,40626.0,40609.0,3.0196]
[1610226527449,1.0,40622.0,40609.0,3.0196]
[1610226527651,1.0,40622.0,40589.0,2.39108826]
[1610226527852,1.0,40622.0,40593.0,4.009]
[1610226528054,1.0,40622.0,40598.0,0.13632608]
[1610226528350,1.0,40622.0,40593.0,4.0841]
[1610226528551,1.488,40622.0,40593.0,4.0841]
[1610226529352,0.488,40622.0,40593.0,4.0841]
[1610226529953,0.13632608,40594.0,40593.0,4.0841]
[1610226530155,0.488,40622.0,40593.0,4.0841]
[1610226531956,0.488,40622.0,40612.0,0.13632608]
[1610226532156,0.2737,40628.0,40612.0,0.13632608]
[1610226532356,0.2881,40637.0,40614.0,2.8157]
[1610226532756,0.00030167,40636.0,40614.0,2.8157]
[1610226533658,0.0304685,40636.0,40614.0,2.8157]
[1610226534057,0.0304685,40636.0,40625.0,0.13632608]
[1610226534258,0.0304685,40636.0,40617.0,0.08002]
[1610226534858,0.03046956,40638.0,40617.0,0.08002]
[1610226535060,0.03046966,40635.0,40617.0,0.08002]
[1610226535261,0.03046944,40637.0,40617.0,0.08002]
[1610226535662,0.03046855,40638.0,40617.0,0.08002]
[1610226535861,0.03046844,40636.0,40617.0,0.08002]
[1610226536060,0.13632608,40618.0,40617.0,0.08002]
[1610226538265,3.17452608,40618.0,40617.0,0.08002]
[1610226538465,3.17452608,40618.0,40607.0,0.11263]
[1610226538664,3.17452608,40618.0,40593.0,0.0751]
[1610226538866,3.26763608,40618.0,40589.0,3.5832]
[1610226539064,0.09083024,40617.0,40589.0,3.5832]
[1610226539966,0.09083024,40617.0,40592.0,0.13632608]
[1610226540266,0.09083024,40617.0,40592.0,0.23812608]
[1610226541771,0.12018,40627.0,40594.0,3.1877]
[1610226541969,0.13632608,40616.0,40612.0,0.13632608]
[1610226542369,0.13632608,40616.0,40612.0,3.58412608]
[1610226542769,0.12018,40627.0,40612.0,3.58412608]
[1610226543571,0.33322913,40637.0,40612.0,3.58412608]
[1610226543971,0.13632608,40628.0,40627.0,0.13632608]
[1610226544573,0.2803,40663.0,40627.0,0.13632608]
[1610226544773,0.2737,40656.0,40627.0,0.22866608]
[1610226544973,0.09078335,40643.0,40627.0,0.22866608]
[1610226545173,0.36418174,40656.0,40627.0,0.22866608]
[1610226545372,1.0,40654.0,40627.0,0.22866608]
[1610226545774,0.03045953,40647.0,40628.0,2.9522]
[1610226545978,0.09077599,40653.0,40646.0,0.13632608]
[1610226546377,0.0603159,40653.0,40646.0,0.13632608]
[1610226546575,1.0,40654.0,40646.0,0.13632608]
[1610226547378,1.0,40672.0,40646.0,0.13632608]
[1610226547980,0.09071447,40671.0,40655.0,0.13632608]
[1610226549382,1.0,40670.0,40655.0,0.13632608]
[1610226549582,1.0,40670.0,40645.0,3.82805]
[1610226549782,0.0301467,40669.0,40645.0,3.82805]
[1610226549983,0.09074157,40669.0,40653.0,0.13632608]
[1610226550183,0.09074157,40669.0,40653.0,0.53412608]
[1610226551783,0.03044491,40673.0,40653.0,0.53412608]
[1610226551985,0.06028695,40674.0,40671.0,0.13632608]
[1610226552184,0.0301421,40672.0,40671.0,0.13632608]
[1610226552384,0.03044352,40672.0,40671.0,0.13632608]
[1610226552584,0.0907297,40674.0,40671.0,0.13632608]
[1610226552784,0.03044313,40672.0,40671.0,0.13632608]
[1610226552985,0.03014171,40672.0,40671.0,0.13632608]
[1610226553186,0.03044169,40673.0,40666.0,3.632]
[1610226553386,1.0,40677.0,40666.0,3.632]
[1610226553887,0.09072465,40676.0,40666.0,3.632]
[1610226554086,0.13632608,40667.0,40664.0,0.09608]
[1610226557290,0.13632608,40667.0,40653.0,3.6544]
[1610226558093,1.0,40668.0,40658.0,0.13632608]
[1610226558292,1.0,40668.0,40658.0,0.25529608]
[1610226559293,1.0,40677.0,40658.0,0.25529608]
[1610226559793,0.00030143,40676.0,40658.0,0.25529608]
[1610226560194,0.13632608,40659.0,40658.0,0.25529608]
[1610226562498,1.0,40682.0,40658.0,0.25529608]
[1610226562898,0.0003014,40681.0,40658.0,0.25529608]
[1610226563697,0.00030135,40683.0,40658.0,0.25529608]
[1610226563897,0.00030135,40680.0,40658.0,0.25529608]
[1610226564099,0.00030135,40680.0,40677.0,0.13632608]
[1610226564298,0.00030135,40683.0,40677.0,0.13632608]
[1610226564500,0.00030135,40679.0,40672.0,2.7526]
[1610226564698,0.00030135,40682.0,40672.0,2.7526]
[1610226565099,0.03043657,40683.0,40672.0,2.7526]
[1610226565299,1.0,40675.0,40672.0,2.7526]
[1610226566100,0.13632608,40673.0,40672.0,2.7526]
[1610226567303,1.13632608,40673.0,40672.0,2.7526]
[1610226568903,1.13632608,40673.0,40668.0,0.10966]
[1610226569307,0.13632608,40673.0,40668.0,0.10966]
[1610226569506,0.13632608,40673.0,40662.0,3.4323]
[1610226570105,0.13632608,40663.0,40662.0,3.4323]
[1610226576712,0.13632608,40663.0,40658.0,0.11897]
[1610226576915,0.13632608,40663.0,40652.0,3.375]
[1610226577312,1.13632608,40663.0,40652.0,3.375]
[1610226578112,0.13632608,40653.0,40652.0,3.375]
[1610226581019,0.13632608,40653.0,40645.0,0.11215]
[1610226581219,0.13632608,40653.0,40637.0,3.8541]
[1610226582219,0.13632608,40638.0,40637.0,3.8541]
[1610226589528,1.0,40658.0,40637.0,3.8541]
[1610226589727,1.0,40658.0,40637.0,3.97148]
[1610226589931,0.00030148,40657.0,40637.0,3.97148]
[1610226590129,0.00030148,40657.0,40642.0,0.13632608]
[1610226590532,1.0,40658.0,40642.0,0.13632608]
[1610226591331,0.2906,40664.0,40642.0,0.13632608]
[1610226591532,1.2906,40664.0,40642.0,0.13632608]
[1610226591732,0.03044892,40663.0,40642.0,0.13632608]
[1610226592032,0.00030147,40663.0,40637.0,3.97148]
[1610226592234,0.13632608,40638.0,40637.0,4.10780608]
[1610226593734,0.2906,40664.0,40637.0,4.10780608]
[1610226594135,0.13632608,40649.0,40648.0,0.13632608]
[1610226595736,0.13632608,40649.0,40637.0,3.97148]
[1610226596337,0.13632608,40638.0,40637.0,4.10780608]
[1610226596537,0.13632608,40638.0,40637.0,0.11738]
[1610226596736,0.13632608,40638.0,40627.0,3.75384]
[1610226598340,0.13632608,40628.0,40627.0,3.75384]
[1610226603847,3.3583,40651.0,40627.0,3.75384]
[1610226604047,0.10268,40655.0,40627.0,0.09234]
[1610226604248,0.10268,40655.0,40635.0,0.13632608]
[1610226604448,0.0304529,40654.0,40635.0,0.13632608]
[1610226606249,0.10268,40655.0,40635.0,0.13632608]
[1610226606451,0.13632608,40650.0,40649.0,0.13632608]
[1610226606652,0.13632608,40650.0,40649.0,3.75682608]
[1610226608352,0.10268,40655.0,40649.0,3.75682608]
[1610226608752,0.2906,40664.0,40649.0,3.75682608]
[1610226608952,0.2906,40664.0,40663.0,3.8164]
[1610226610353,0.2906,40664.0,40663.0,3.95272608]
[1610226611553,0.13632608,40665.0,40663.0,3.95272608]
[1610226611754,0.08245,40679.0,40663.0,0.13632608]
[1610226611954,1.0,40681.0,40663.0,0.13632608]
[1610226611955,0.06028804,40680.0,40663.0,0.13632608]
[1610226612155,1.0,40681.0,40679.0,3.1016]
[1610226612356,0.13632608,40680.0,40679.0,3.1016]
[1610226612756,0.16676643,40680.0,40679.0,3.1016]
[1610226612957,0.03044035,40680.0,40679.0,3.1016]
[1610226613157,1.0,40681.0,40679.0,3.1016]
[1610226613357,1.0,40708.0,40679.0,3.1016]
[1610226613758,0.03043792,40687.0,40676.0,0.13632608]
[1610226613956,0.03043809,40693.0,40676.0,0.13632608]
[1610226614158,0.03043809,40693.0,40691.0,4.0987]
[1610226614357,0.03043745,40696.0,40692.0,0.13632608]
[1610226614560,0.10862,40697.0,40692.0,0.13632608]
[1610226614760,0.00030135,40695.0,40692.0,0.13632608]
[1610226615157,0.00030135,40696.0,40692.0,0.13632608]
[1610226615358,0.00030135,40694.0,40692.0,0.13632608]
[1610226615559,0.00030133,40695.0,40692.0,0.13632608]
[1610226615959,0.10862,40697.0,40692.0,0.13632608]
[1610226616359,0.13632608,40693.0,40692.0,0.13632608]
[1610226616960,0.13632608,40693.0,40690.0,3.9646]
[1610226617760,0.00030132,40692.0,40690.0,3.9646]
[1610226618865,0.13632608,40693.0,40690.0,3.9646]
[1610226620368,0.13632608,40693.0,40692.0,0.13632608]
[1610226621168,0.13632608,40693.0,40692.0,2.90922608]
[1610226622170,0.13632608,40693.0,40692.0,0.13632608]
[1610226622371,0.13632608,40693.0,40676.0,0.11094]
[1610226622771,0.13632608,40693.0,40683.0,2.8212]
[1610226624370,1.10862,40697.0,40684.0,0.13632608]
[1610226624771,0.00030133,40696.0,40684.0,0.13632608]
[1610226625873,0.00030133,40696.0,40683.0,2.8212]
[1610226626471,0.13632608,40684.0,40683.0,2.8212]
[1610226626670,0.13632608,40684.0,40676.0,0.11094]
[1610226626870,0.13632608,40684.0,40673.0,0.13632608]
[1610226628473,0.13632608,40674.0,40673.0,0.13632608]
[1610226631678,0.13632608,40674.0,40666.0,0.1014]
[1610226631877,0.13632608,40674.0,40661.0,3.5014]
[1610226632478,0.13632608,40662.0,40661.0,3.5014]
[1610226633577,0.13632608,40662.0,40651.0,0.13632608]
[1610226633781,0.13632608,40662.0,40647.0,0.09282]
[1610226633980,0.13632608,40662.0,40641.0,3.6223]
[1610226634479,0.13632608,40642.0,40641.0,3.6223]
[1610226635579,0.13632608,40642.0,40636.0,0.13632608]
[1610226635780,0.13632608,40642.0,40623.0,3.9168]
[1610226636582,0.13632608,40624.0,40613.0,0.13632608]
[1610226636781,0.13632608,40624.0,40608.0,2.41306548]
[1610226636981,0.13632608,40624.0,40602.0,3.7598]
[1610226637180,0.13632608,40624.0,40609.0,0.00021855]
[1610226637381,1.0,40615.0,40609.0,0.08872]
[1610226638582,1.0,40615.0,40609.0,0.51222]
[1610226639484,4.1029,40640.0,40609.0,0.51222]
[1610226639684,1.0,40640.0,40609.0,0.08872]
[1610226639886,1.0,40640.0,40612.0,3.4666]
[1610226640685,0.13632608,40619.0,40618.0,0.13632608]
[1610226640887,0.13632608,40619.0,40609.0,0.08872]
[1610226642389,0.13632608,40619.0,40603.0,2.8542]
[1610226642588,0.08081,40633.0,40610.0,0.13632608]
[1610226642789,0.08081,40633.0,40610.0,0.25133608]
[1610226642989,0.08081,40633.0,40614.0,3.1501]
[1610226644389,0.08081,40633.0,40610.0,0.25133608]
[1610226644589,0.13632608,40611.0,40610.0,0.25133608]
[1610226644788,0.13632608,40611.0,40610.0,0.11501]
[1610226647092,0.08081,40633.0,40610.0,0.11501]
[1610226647292,2.9767,40658.0,40610.0,3.56991]
[1610226647492,4.4767,40658.0,40610.0,3.56991]
[1610226647692,0.00030171,40642.0,40610.0,3.56991]
[1610226648494,2.9767,40658.0,40610.0,3.56991]
[1610226648694,0.09867,40672.0,40634.0,0.13632608]
[1610226648894,3.5628,40671.0,40634.0,0.13632608]
[1610226649095,1.5,40670.0,40634.0,0.13632608]
[1610226649493,0.2946,40669.0,40629.0,3.7139]
[1610226649697,1.5,40668.0,40629.0,3.7139]
[1610226650297,1.5,40668.0,40624.0,0.10937]
[1610226650498,0.13632608,40625.0,40624.0,0.10937]
[1610226654000,0.13632608,40625.0,40623.0,0.13632608]
[1610226657606,1.0,40636.0,40623.0,0.13632608]
[1610226657806,1.0,40636.0,40624.0,0.4233]
[1610226658007,1.0,40636.0,40623.0,0.13632608]
[1610226658607,1.0,40636.0,40635.0,0.13632608]
[1610226659409,0.13632608,40637.0,40635.0,0.13632608]
[1610226660409,0.07751,40645.0,40635.0,0.13632608]
[1610226660608,0.07751,40645.0,40643.0,0.13632608]
[1610226662013,0.07751,40645.0,40630.0,3.3269]
[1610226662611,0.13632608,40631.0,40630.0,3.3269]
[1610226662812,0.13632608,40631.0,40628.0,0.13632608]
[1610226668523,0.07751,40645.0,40628.0,0.13632608]
[1610226668724,0.06033376,40655.0,40644.0,0.13632608]
[1610226668925,0.2855,40668.0,40644.0,0.13632608]
[1610226669325,0.34582216,40668.0,40644.0,0.13632608]
[1610226669523,0.03046129,40667.0,40644.0,0.13632608]
[1610226670724,0.03046129,40667.0,40641.0,0.10102]
[1610226671923,0.09076911,40667.0,40641.0,0.10102]
[1610226672723,0.09076911,40667.0,40645.0,0.13632608]
[1610226672925,0.09076911,40667.0,40641.0,0.10102]
[1610226673424,1.0,40646.0,40641.0,0.10102]
[1610226674224,1.0,40646.0,40631.0,0.11957]
[1610226674425,1.0,40646.0,40622.0,0.11543]
[1610226674625,1.0,40646.0,40609.0,4.1096]
[1610226674828,1.0,40646.0,40625.0,0.13632608]
[1610226675424,1.0,40636.0,40625.0,0.13632608]
[1610226676726,0.13632608,40626.0,40625.0,0.13632608]
[1610226683034,0.11361,40640.0,40625.0,0.13632608]
[1610226683234,1.0,40644.0,40625.0,3.55932608]
[1610226683434,0.2842,40662.0,40625.0,3.55932608]
[1610226684135,0.03046323,40661.0,40625.0,3.55932608]
[1610226684736,0.03046323,40661.0,40649.0,0.13632608]
[1610226685438,1.03046323,40661.0,40649.0,0.13632608]
[1610226686038,0.03046392,40660.0,40649.0,0.13632608]
[1610226686837,0.13632608,40650.0,40649.0,0.13632608]
[1610226687039,0.23391608,40650.0,40649.0,0.13632608]
[1610226688539,0.23391608,40650.0,40641.0,3.6275]
[1610226688737,0.13632608,40642.0,40641.0,3.6275]
[1610226688939,0.13632608,40642.0,40640.0,0.13632608]
[1610226689338,0.13632608,40642.0,40628.0,3.0843]
[1610226690742,0.13632608,40642.0,40641.0,0.13632608]
[1610226696950,0.13632608,40642.0,40628.0,3.0843]
[1610226697550,2.8577,40641.0,40621.0,0.11433]
[1610226697751,2.8577,40641.0,40615.0,2.45612969]
[1610226698152,2.8577,40641.0,40608.0,5.72558388]
[1610226698553,2.8577,40641.0,40609.0,0.00022203]
[1610226698750,0.03047409,40640.0,40609.0,0.09495203]
[1610226698951,0.03047409,40640.0,40613.0,0.13632608]